Cogmind - Beta 12 X1 @@@ ROGUE MODE // 2022.08.29 @ 04:20:46 // AFD2020/Player2 Player: cptwinky Result: Core destroyed Performance ------------- Evolutions (6) 3000 Regions Visited (24) 4800 Robots Destroyed (244) 1220 Value Destroyed (8845) 8845 Prototype IDs (55) 1100 Alien Tech Used (1) 200 Bonus (8642) 8642 TOTAL SCORE: 27807 Bonus ------- High Alert Combat Kills 2228 Follower Combat Kills 6872 Network Hubs Disabled 400 Met Data Miner 300 Met Imprinter 300 Met Zhirov 300 Met R17 at Cetus 500 Friendly Fire -2258 Cogmind --------- Core Integrity 0/1150 Matter 274/300 Energy 600/600 System Corruption 2% Temperature Warning (355) Movement Treading (165) Location -4/Factory Parts ------- > --- POWER (2) -------- Enhanced Fission Core Enhanced Fission Core > --- PROPULSION (6) --- Armored Medium Treads Centrium Heavy Treads Wheel Wheel Compact Wheel > --- UTILITY (8) ------ Advanced Heat Sink Experimental Heat Sink High-capacity Storage Unit Enhanced Optical Array Advanced Targeting Computer Improved Transmission Jammer Centrium Medium Armor Plating > --- WEAPON (3) ------- Advanced Plasma Cannon Advanced Plasma Cannon Heavy Phase Cannon > --- INVENTORY (20) --- Enhanced Fission Core Medium Treads Matter Compressor (250) Long-range Tractor Beam Trap Extractor (4/4 Shock) Trap Extractor (4/4 Fire) Hacking Drone Bay (1/1) Bomb Factory No. 2 Storm Laser Advanced Plasma Cannon Neutron Cannon Long-range Missile Launcher Improved Datajack Phasing Sabre Peak State ------------ > --- POWER ------------ Enhanced Fission Core Micro Fission Core > --- PROPULSION ------- Heavy Treads Centrium Heavy Treads Centrium Heavy Treads > --- UTILITY ---------- Experimental Heat Sink High-capacity Storage Unit Enhanced Optical Array Advanced Targeting Computer Improved Transmission Jammer Improved Heavy Armor Plating Centrium Medium Armor Plating > --- WEAPON ----------- Heavy Phase Cannon Heavy Machine Gun Bore Cannon > --- INVENTORY -------- Armored Medium Treads Advanced Heat Sink Matter Compressor Long-range Tractor Beam Trap Extractor Trap Extractor Hacking Drone Bay Bomb Factory No. 2 Storm Laser Advanced Plasma Cannon Advanced Plasma Cannon Advanced Plasma Cannon Neutron Cannon Long-range Missile Launcher Improved Datajack Phasing Sabre [Rating: 128] Favorites ----------- Power Enhanced Fission Core Engine Heavy Ion Engine Power Core Enhanced Fission Core Reactor Quantum Reactor Propulsion Light Treads Treads Light Treads Leg VSS Leg Wheel Armored Huge Wheel Utility High-capacity Storage Unit Device Improved Cooling System Storage High-capacity Storage Unit Processor Advanced Targeting Computer Hackware Hacking Suite Protection Hardened Medium Armor Plating Weapon Advanced Assault Cannon Energy Gun Medium Laser Energy Cannon Advanced Beam Cannon Ballistic Gun Coil Gun Ballistic Cannon Advanced Assault Cannon Launcher Rocket Launcher Impact Weapon Powered Hammer Special Melee Weapon Datajack Build | -11 -10 -10 -9 -9 -9 -8 -8 -8 -7 -7 -7 -7 -6 -6 -6 -6 -6 -5 -5 -5 -5 -5 -5 -4 ------- Run | Scr Mat Min Mat Min Exi Min Mat Sto Fac Low Low Dat Pro Fac Low Low Zio Pro Fac Ext Cet Arc Hub Fac Slots Evolved 12 | . . . 2 . . . 2 . 2 . . . . 2 . . . . 2 . . . . 2 Power 1 | . . . . . . . . . . . . . . . . . . . 1 . . . . . Propulsion 4 | . . . 1 . . . 1 . . . . . . 1 . . . . 1 . . . . . Utility 6 | . . . 1 . . . 1 . 1 . . . . 1 . . . . . . . . . 2 Weapon 1 | . . . . . . . . . 1 . . . . . . . . . . . . . . . Parts Attached 223 | 2 3 2 23 6 3 2 18 22 26 6 6 2 14 30 4 . 5 6 2 11 6 . 5 19 Power 13 | . . 1 3 . . . . . . . . . 2 2 . . . . 1 . 1 . 1 2 Engine 8 | . . 1 3 . . . . . . . . . 2 1 . . . . 1 . . . . . Core 4 | . . . . . . . . . . . . . . 1 . . . . . . . . 1 2 Reactor 1 | . . . . . . . . . . . . . . . . . . . . . 1 . . . Propulsion 48 | 2 . . 5 . . . 4 6 8 1 . . 2 7 . . . 2 1 1 3 . 2 4 Treads 42 | 2 . . 3 . . . 4 6 8 1 . . 1 7 . . . 2 1 1 3 . 2 1 Leg 1 | . . . 1 . . . . . . . . . . . . . . . . . . . . . Wheel 5 | . . . 1 . . . . . . . . . 1 . . . . . . . . . . 3 Hover . | . . . . . . . . . . . . . . . . . . . . . . . . . Flight . | . . . . . . . . . . . . . . . . . . . . . . . . . Utility 75 | . 1 . 5 . 1 . 4 3 10 4 3 . 3 16 2 . 3 2 . 6 2 . 1 9 Device 38 | . . . 1 . . . 2 1 3 2 1 . . 8 2 . 3 2 . 5 1 . 1 6 Storage 2 | . . . 1 . 1 . . . . . . . . . . . . . . . . . . . Processor 4 | . . . 1 . . . . . 1 . . . . 2 . . . . . . . . . . Hackware 4 | . . . . . . . . 1 2 . . . . 1 . . . . . . . . . . Protection 27 | . 1 . 2 . . . 2 1 4 2 2 . 3 5 . . . . . 1 1 . . 3 Artifact . | . . . . . . . . . . . . . . . . . . . . . . . . . Weapon 87 | . 2 1 10 6 2 2 10 13 8 1 3 2 7 5 2 . 2 2 . 4 . . 1 4 Energy Gun . | . . . . . . . . . . . . . . . . . . . . . . . . . Energy Cannon 12 | . . . 2 3 1 1 2 . . . . . . . . . . . . . . . . 3 Ballistic Gun 30 | . 2 1 . . . . 3 7 4 1 1 1 2 4 . . 1 1 . 1 . . 1 . Ballistic Cannon 19 | . . . 6 . . . 3 . 2 . 1 . 2 1 1 . . . . 3 . . . . Launcher 11 | . . . 1 3 . 1 1 2 . . . . . . 1 . . 1 . . . . . 1 Special Weapon . | . . . . . . . . . . . . . . . . . . . . . . . . . Impact Weapon 6 | . . . . . . . 1 1 2 . 1 . 1 . . . . . . . . . . . Slashing Weapon . | . . . . . . . . . . . . . . . . . . . . . . . . . Piercing Weapon . | . . . . . . . . . . . . . . . . . . . . . . . . . Special Melee Weapon 9 | . . . 1 . 1 . . 3 . . . 1 2 . . . 1 . . . . . . . Unidentified Prototypes 14 | . . . 3 . . . 2 . . . 1 . . 4 1 . 1 . . . 1 . . 1 Parts Lost 23 | . . . 1 . . . . 1 1 . . . 3 8 . . . . . . . . 3 6 Power 1 | . . . . . . . . . . . . . 1 . . . . . . . . . . . Propulsion 6 | . . . 1 . . . . . 1 . . . 1 1 . . . . . . . . . 2 Utility 8 | . . . . . . . . 1 . . . . 1 3 . . . . . . . . 1 2 Weapon 8 | . . . . . . . . . . . . . . 4 . . . . . . . . 2 2 Highest Loss Streak 3 | . . . 1 . . . . 1 1 . . . 3 3 . . . . . . . . 2 3 To Critical Strikes 1 | . . . . . . . . . . . . . . . . . . . . . . . . 1 Average Slot Usage (%) 91 | . 88 99 95 100 100 100 94 92 99 99 99 100 97 87 80 80 80 84 86 92 84 82 76 77 Engine 5 | . 14 14 11 11 11 11 9 9 7 7 7 7 6 3 . . . . 5 5 . . . . Core 2 | . . . . . . . . . . . . . . 2 6 6 6 6 5 5 5 5 10 10 Treads 27 | . 28 28 17 33 33 33 35 36 29 30 30 30 27 19 20 20 20 29 33 35 25 23 18 13 Wheel 1 | . . . 10 . . . . . . . . . 1 6 6 6 6 1 . . . . . 4 Device 4 | . . . . . . . 4 . . 7 7 7 7 7 6 6 6 6 5 5 5 5 4 10 Storage 7 | . 14 14 11 11 11 11 9 9 7 7 7 7 7 6 6 6 6 6 5 5 5 5 5 5 Processor 9 | . . . 10 11 11 11 9 9 7 7 7 7 7 12 13 13 13 13 11 11 11 11 11 10 Protection 9 | . 2 14 10 11 11 11 8 8 6 14 14 15 15 9 6 6 6 6 5 5 5 5 5 7 Energy Cannon 1 | . . . 4 10 1 10 6 . . . . . . . . . . . . . . . . 7 Ballistic Gun 6 | . 20 27 3 . . . 5 17 16 7 6 6 1 6 6 6 5 5 5 3 . . 2 2 Ballistic Cannon 10 | . . . 14 11 11 11 6 . 5 15 15 15 21 10 5 6 6 6 5 11 17 17 13 2 Naked Turns . | . . . . . . . . . . . . . . . . . . . . . . . . . Heaviest Build 120 | 13 17 17 34 34 64 64 71 69 72 77 82 82 99 91 86 86 90 93 105 120 120 115 120 114 Greatest Support 230 | 40 40 40 60 60 60 60 80 82 82 90 90 90 90 68 28 28 28 110 130 130 210 210 230 230 Greatest Overweight (x) 38 | . . . 1 . 1 1 . . 1 . . . 2 3 3 3 3 3 . . . 38 . 4 Average Overweight (x) 1 | . . . . . . 1 . . . . . . 1 2 3 3 3 . . . . 22 . . Largest Inventory Capacity 20 | 8 8 8 10 10 20 20 20 20 20 20 20 20 20 20 20 20 20 20 20 20 20 20 20 20 Average Capacity 18 | 8 8 8 8 10 17 20 20 20 20 20 20 20 20 20 20 20 20 20 20 20 20 20 20 20 Most Carried 20 | 6 8 8 10 10 11 20 20 20 20 20 20 20 20 20 20 20 20 20 20 20 20 20 20 20 Average Carried 17 | 6 3 7 7 10 10 15 19 19 19 19 19 20 19 18 18 19 19 19 18 20 19 20 19 18 Final Capacity 20 | 8 8 8 10 10 20 20 20 20 20 20 20 20 20 20 20 20 20 20 20 20 20 20 20 20 Final Carried 20 | 6 8 8 10 10 11 20 20 20 20 20 20 20 18 18 20 20 20 19 20 20 20 20 20 18 Class Distribution -------------------- 20% | Mutant 16% | Trapper-Tank 15% | Trapper-Mutant 13% | Scavenger-Mutant 11% | Trapper-Gunner 7% | Scavenger-Tank 4% | Scavenger-Gunner 3% | Commander-Gunner Dominant Class ---------------- Mutant | -10/Materials Mutant | -10/Mines Mutant | -9/Materials Mutant | -9/Mines Mutant | -9/Exiles Mutant | -8/Mines Mutant | -8/Materials Scavenger-Mutant | -8/Storage Hacker-Gunner | -7/Factory Trapper-Tank | -7/Lower Caves Trapper-Tank | -7/Lower Caves Trapper-Tank | -7/Data Miner Scavenger-Tank | -6/Proximity Caves Trapper-Tank | -6/Factory Trapper-Mutant | -6/Lower Caves Trapper-Mutant | -6/Lower Caves Trapper-Mutant | -6/Zion Scavenger-Mutant | -5/Proximity Caves Scavenger-Mutant | -5/Factory Commander-Gunner | -5/Extension Trapper-Mutant | -5/Cetus Trapper-Gunner | -5/Archives Trapper-Gunner | -5/Hub_04(d) Trapper-Tank | -4/Factory Resources | -11 -10 -10 -9 -9 -9 -8 -8 -8 -7 -7 -7 -7 -6 -6 -6 -6 -6 -5 -5 -5 -5 -5 -5 -4 ----------- Run | Scr Mat Min Mat Min Exi Min Mat Sto Fac Low Low Dat Pro Fac Low Low Zio Pro Fac Ext Cet Arc Hub Fac Matter Collected 7592 | 173 97 34 423 143 40 99 258 515 732 144 523 . 607 975 186 394 25 178 62 690 343 . 425 526 Remotely 326 | . . . . . . . . . 119 . . . . 84 . . . . . 123 . . . . Salvage Created 9521 | . 174 88 792 66 . 173 336 908 907 16 617 . 383 851 96 183 . 127 103 720 511 . 584 1886 Parts 489 | . 9 11 42 12 . 11 19 60 46 5 14 . 14 41 2 10 . 5 2 40 23 . 28 95 Haulers Intercepted 19 | . . . 5 . . . 2 5 2 . 1 . . 1 . . . . . 1 . . . 2 Recyclers Shooed 3 | . . . 1 . . . . 1 . . . . . 1 . . . . . . . . . . Parts Field Recycled 5 | . . . 5 . . . . . . . . . . . . . . . . . . . . . Retrieved Matter 38 | . . . 38 . . . . . . . . . . . . . . . . . . . . . Parts Self-Destructed 101 | . . . . . . . . . . 7 29 . 30 . 2 14 . 19 . . . . . . Prevented 1 | . . . . . . . . . . . . . . . 1 . . . . . . . . . Kills | -11 -10 -10 -9 -9 -9 -8 -8 -8 -7 -7 -7 -7 -6 -6 -6 -6 -6 -5 -5 -5 -5 -5 -5 -4 ------- Run | Scr Mat Min Mat Min Exi Min Mat Sto Fac Low Low Dat Pro Fac Low Low Zio Pro Fac Ext Cet Arc Hub Fac Combat Hostiles Destroyed 162 | . 3 3 11 8 . 4 5 14 18 . 10 . 10 17 5 5 . 1 2 4 7 . 5 30 Melee 2 | . . . . . . . . . . . . . . . . . . . . . . . 2 . Guns 45 | . 3 3 . . . . . 11 13 . 4 . . 8 . . . . . . . . 1 2 Cannons 83 | . . . 8 . . 1 4 . 5 . 6 . 10 9 3 5 . 1 2 4 7 . 2 16 AOE 29 | . . . 3 8 . 3 1 3 . . . . . . 2 . . . . . . . . 9 Classes Destroyed 20 | . 2 2 5 . . 2 . 2 . 1 1 . . 4 . . . . . . 1 . . . Worker 15 | . . . 2 1 . 1 1 1 1 . . . . 2 . . . . . . . . 2 4 Builder 19 | . . 1 . . . . 1 . . . . . . 2 . . . . . 3 . . 5 7 Tunneler 5 | . . . . . . 2 . . . . . . . . . . . . . 1 . . . 2 Hauler 19 | . . . 5 . . . 2 5 2 . 1 . . 1 . . . . . 1 . . . 2 Recycler 9 | . . . 3 . . . . . . . . . . 1 . . . . . 3 . . 2 . Carrier 1 | . . . . . . . . . . . . . . . . . . . . . 1 . . . Minesweeper 1 | . . . . . . . . . . 1 . . . . . . . . . . . . . . Mechanic 2 | . . . . . . . . . . . . . . 1 . . . . . . . . . 1 Operator 3 | . . . 1 . . . 1 1 . . . . . . . . . . . . . . . . Watcher 6 | . 1 . . . . . . 1 2 . . . . . . . . . . 1 1 . . . Swarmer 36 | . . 2 3 8 . . . . 2 . 5 . 2 4 1 1 . 1 . . . . . 7 Grunt 74 | . 3 1 7 . . 3 3 4 14 . 2 . 4 2 4 3 . . 2 2 3 . 2 15 Brawler 5 | . . . . . . . . . . . 1 . 1 1 . . . . . . . . . 2 Duelist 4 | . . . . . . . . 1 . . 1 . 2 . . . . . . . . . . . Protector 3 | . . . . . . . . 1 . . . . . 2 . . . . . . . . . . Sentry 21 | . . . 1 . . . 2 8 2 . 1 . 1 2 . 1 . . . 1 . . 1 1 Specialist 2 | . . . . . . . . . . . . . . 2 . . . . . . . . . . Hunter 9 | . . . . . . 1 . . . . . . . 1 . . . . . 1 1 . 2 3 Programmer 3 | . . . . . . . . . . . . . . 1 . . . . . . . . . 2 Heavy 2 | . . . . . . . . . . . . . . 2 . . . . . . . . . . Cetus Guard 3 | . . . . . . . . . . . . . . . . . . . . . 3 . . . Packrat 2 | . . . . . . . . . . . 2 . . . . . . . . . . . . . Butcher 2 | . . . . . . . . . . . . . . . . . . 2 . . . . . . Best Kill Streak 20 | . 2 2 5 3 . 4 3 4 5 1 3 . 4 9 2 4 . 1 2 4 5 . 4 20 Combat Bots Only 16 | . 1 2 3 3 . 3 2 4 4 . 3 . 4 3 2 4 . 1 2 2 3 . 2 16 Max Kills in Single Turn 8 | . 1 1 2 2 . 3 2 2 1 1 2 . 1 1 1 1 . 1 1 2 1 . 4 8 Gunslinging . | . . . . . . . . . . . . . . . . . . . . . . . . . Exploded 3 | . . . 2 2 . 3 1 2 . . . . . . 1 . . . . . . . . 3 Melee 1 | . . . . . . . . . . . . . . . . . . . . . . . 1 . Uniques/NPCs Destroyed . | . . . . . . . . . . . . . . . . . . . . . . . . . Combat | -11 -10 -10 -9 -9 -9 -8 -8 -8 -7 -7 -7 -7 -6 -6 -6 -6 -6 -5 -5 -5 -5 -5 -5 -4 -------- Run | Scr Mat Min Mat Min Exi Min Mat Sto Fac Low Low Dat Pro Fac Low Low Zio Pro Fac Ext Cet Arc Hub Fac Damage Taken 12532 | . 310 62 284 53 . 438 190 418 825 98 466 . 1080 1723 413 69 . 13 23 903 913 . 1822 2429 Core 802 | . 93 . 48 9 . 56 30 57 103 . 31 . 17 113 . . . . . . 41 . 113 91 Absorbed by Shields . | . . . . . . . . . . . . . . . . . . . . . . . . . Reduced by Siege Mode 21 | . . . . . . . . . . . . . . . . . . . . . 21 . . . Redirected to Shielding 102 | . . . . . . . . . . 15 87 . . . . . . . . . . . . . Regen/Repaired (Parts) 318 | . . . 83 . . . 125 . 89 . 21 . . . . . . . . . . . . . Core Remaining (%) 60 | 100 . 50 . . . 46 . 79 . . . . 66 . . . . 33 . . . . 47 . Volleys Fired 506 | . 20 5 35 7 . 12 15 47 49 5 30 . 27 61 18 7 . 11 8 38 19 . 21 71 Largest 3 | . 2 2 2 1 . 2 2 2 3 3 3 . 3 3 1 1 . 1 2 3 3 . 3 3 Hottest 286 | . 70 40 103 33 . 107 107 46 124 126 126 . 144 144 60 60 . 60 90 171 171 . 171 286 Shots Fired 1130 | . 40 10 68 7 . 21 27 90 123 15 82 . 79 151 18 7 . 11 9 94 50 . 56 172 Gun 431 | . 40 10 2 . . . . 86 85 5 25 . 6 99 . . . . 4 34 . . 11 24 Cannon 673 | . . . 64 . . 18 25 . 38 10 57 . 73 52 14 7 . 11 5 60 50 . 45 144 Launcher 26 | . . . 2 7 . 3 2 4 . . . . . . 4 . . . . . . . . 4 Special . | . . . . . . . . . . . . . . . . . . . . . . . . . Kinetic 937 | . 20 10 54 . . 9 13 86 123 15 82 . 79 151 14 7 . 11 9 94 50 . 56 54 Thermal 167 | . 20 . 12 . . 9 12 . . . . . . . . . . . . . . . . 114 Explosive 26 | . . . 2 7 . 3 2 4 . . . . . . 4 . . . . . . . . 4 Electromagnetic . | . . . . . . . . . . . . . . . . . . . . . . . . . Robot Hit Streak 33 | . 3 9 15 3 . 5 8 20 33 3 16 . 8 14 10 17 . 20 4 7 6 . 5 15 Robot Miss Streak 10 | . 4 . 3 . . 2 2 1 5 1 4 . 5 10 1 . . 1 2 5 3 . 3 4 Penetration Max 1 | . . . . . . . . . 1 . 1 . . 1 . . . . . 1 1 . 1 1 Secondary Targets 6 | . 1 1 . . . . . 1 2 . . . . 1 . . . . . . . . . . Max Gunslinging Chain 1 | . 1 1 . . . . . 1 1 . . . . 1 . . . . . . . . . . Shots Hit Robots 741 | . 16 8 42 2 4 13 19 71 88 11 52 1 45 107 15 7 1 9 4 58 33 . 32 103 Core Hits 443 | . 7 4 23 9 . 12 13 38 41 4 23 . 22 98 9 4 . 4 2 22 13 . 22 73 Critical Kills 27 | . . . 1 . . . . . 1 . 1 . 1 . . . . . . 8 6 . 3 6 Critical Parts Destroyed 44 | . . . . . . . 1 . . . . . 1 1 . . . . . 11 9 . 10 11 Critical Strikes 99 | . 1 . 3 . . 1 2 . 2 2 3 . 3 2 1 1 . 2 2 24 18 . 15 17 Burn 1 | . 1 . . . . . . . . . . . . . . . . . . . . . . . Meltdown 3 | . . . . . . . . . . . . . . . . . . . . . . . . 3 Destroy 77 | . . . 1 . . . . . 1 . 1 . 3 1 . . . . . 23 18 . 15 14 Blast 17 | . . . 2 . . 1 1 . 1 2 2 . . 1 1 1 . 2 2 1 . . . . Smash 1 | . . . . . . . 1 . . . . . . . . . . . . . . . . . Melee Attacks 20 | . . . . . 4 . 2 2 2 . 5 1 3 . . . 1 . . . . . . . Impact 12 | . . . . . . . 2 1 2 . 5 . 2 . . . . . . . . . . . Slashing . | . . . . . . . . . . . . . . . . . . . . . . . . . Piercing . | . . . . . . . . . . . . . . . . . . . . . . . . . Sneak Attacks 9 | . . . . . 4 . 1 1 . . . 1 1 . . . 1 . . . . . . . Combat Hostiles . | . . . . . . . . . . . . . . . . . . . . . . . . . Follow-up Attacks . | . . . . . . . . . . . . . . . . . . . . . . . . . Damage Inflicted 24331 | . 195 104 1080 504 . 690 743 1552 1888 282 1492 . 1323 2812 1138 370 . 528 201 1807 905 . 1468 5249 Guns 6120 | . 195 101 12 . . . . 1035 1128 40 508 . 80 1928 . . . . 44 452 . . 171 426 Cannons 13044 | . . . 864 . . 218 381 . 701 242 984 . 1243 882 591 370 . 528 157 1267 905 . 726 2985 Explosions 4688 | . . . 200 488 . 436 232 496 . . . . . . 547 . . . . . . . 465 1824 Melee 96 | . . . . . . . 96 . . . . . . . . . . . . . . . . . Ramming 383 | . . 3 4 16 . 36 34 21 59 . . . . 2 . . . . . 88 . . 106 14 Kinetic 16017 | . 82 101 667 . . 106 229 1035 1829 282 1492 . 1323 2810 591 370 . 528 201 1719 905 . 897 850 Thermal 3147 | . 113 . 209 . . 112 152 . . . . . . . . . . . . . . . . 2561 Explosive 4223 | . . . 200 488 . 436 232 496 . . . . . . 547 . . . . . . . . 1824 Electromagnetic 465 | . . . . . . . . . . . . . . . . . . . . . . . 465 . Impact 96 | . . . . . . . 96 . . . . . . . . . . . . . . . . . Slashing . | . . . . . . . . . . . . . . . . . . . . . . . . . Piercing . | . . . . . . . . . . . . . . . . . . . . . . . . . Highest Corruption 5 | . . . . . . . . . 1 . . . . . 1 . . . . . . . 5 2 Average Corruption 1 | . . . . . . . . . 1 . . . . . 1 . . . . . . . 3 1 Corruption Purged 2 | . . . . . . . . . 1 . . . . . 1 . . . . . . . . . Corruption Blocked . | . . . . . . . . . . . . . . . . . . . . . . . . . Effects 7 | . . . . . . . . . . . . . . . 1 . . . . . . . 1 5 Message Errors 1 | . . . . . . . . . . . . . . . 1 . . . . . . . . . Matter Fused 1 | . . . . . . . . . . . . . . . . . . . . . . . . 1 Heat Flow Errors 2 | . . . . . . . . . . . . . . . . . . . . . . . 1 1 Energy Discharges 1 | . . . . . . . . . . . . . . . . . . . . . . . . 1 Parts Rejected 1 | . . . . . . . . . . . . . . . . . . . . . . . . 1 Weapon Failures 1 | . . . . . . . . . . . . . . . . . . . . . . . . 1 Overload Shots . | . . . . . . . . . . . . . . . . . . . . . . . . . Overflow Damage 509 | . . . 2 7 . 7 112 . . . 36 . 20 7 30 74 . 26 . 18 . . 1 169 Projectiles 231 | . . . 1 . . . 16 . . . 36 . 20 7 8 74 . 26 . . . . . 43 Explosions 164 | . . . 1 7 . 7 . . . . . . . . 22 . . . . . . . 1 126 Melee 114 | . . . . . . . 96 . . . . . . . . . . . . 18 . . . . Knockbacks 60 | . . 1 5 . . . 3 . 7 3 8 . 6 3 4 2 . 1 1 6 1 . 6 3 Impact 3 | . . 1 . . . . 2 . . . . . . . . . . . . . . . . . Kinetic 53 | . . . 4 . . . 1 . 7 3 8 . 6 3 3 2 . 1 1 5 1 . 5 3 Secondary 4 | . . . 1 . . . . . . . . . . . 1 . . . . 1 . . 1 . Self-Inflicted Damage 144 | . . . 36 . . . . . . . . . . . . . . . . . . . 92 16 Shots 3 | . . . 1 . . . . . . . . . . . . . . . . . . . 1 1 Rammed 36 | . . 3 1 2 . 3 2 3 6 . . . . 1 . . . . . 7 . . 8 . Targets Rammed 42 | . . 4 1 2 . 4 2 3 6 . . . . 1 . . . . . 7 . . 11 1 Kicked . | . . . . . . . . . . . . . . . . . . . . . . . . . Crushed 6 | . . 1 . . . 1 . . . . . . . . . . . . . . . . 3 1 Highest Temperature 355 | . 290 9 288 . . 162 201 12 216 . 1 . 111 296 60 33 . 24 61 290 304 . 282 355 Average Temperature 69 | . 101 4 61 . . 56 59 4 58 . 1 . 31 66 22 13 . 13 24 88 121 . 79 82 Received Heat Transfer 2280 | . 195 21 105 . . 45 72 126 217 27 29 . 342 309 141 27 . . . 99 81 . 81 363 Effects 1 | . . . . . . . . . . . . . . . . . . . . . . . 1 . Interference 1 | . . . . . . . . . . . . . . . . . . . . . . . 1 . Siege Activations 1 | . . . . . . . . . . . . . . . . . . . . . 1 . . . Total Turns 32 | . . . . . . . . . . . . . . . . . . . . . 32 . . . Longest Duration 32 | . . . . . . . . . . . . . . . . . . . . . 32 . . . Robots Corrupted . | . . . . . . . . . . . . . . . . . . . . . . . . . Combat Hostiles . | . . . . . . . . . . . . . . . . . . . . . . . . . Parts Fried 8 | . . . . . . . . . . . . . . . . . . . . 4 . . 4 . Impact Corruptions 4 | . . . . . . . 3 . . . . . . . . . . . . 1 . . . . Robots Melted 3 | . . . . . . . . . . . . . . . . . . . . . . . . 3 Combat Hostiles 3 | . . . . . . . . . . . . . . . . . . . . . . . . 3 Parts Melted 15 | . . . 1 . . 2 . . . . . . . . . . . . . . . . . 12 Heat Transferred 4367 | . 379 . 342 . . 157 259 . . . . . . . . . . . . . . . . 3230 Parts Sabotaged . | . . . . . . . . . . . . . . . . . . . . . . . . . Parts Stolen . | . . . . . . . . . . . . . . . . . . . . . . . . . Parts Stripped . | . . . . . . . . . . . . . . . . . . . . . . . . . Power Chain Reactions . | . . . . . . . . . . . . . . . . . . . . . . . . . Missiles Intercepted . | . . . . . . . . . . . . . . . . . . . . . . . . . Alert | -11 -10 -10 -9 -9 -9 -8 -8 -8 -7 -7 -7 -7 -6 -6 -6 -6 -6 -5 -5 -5 -5 -5 -5 -4 ------- Run | Scr Mat Min Mat Min Exi Min Mat Sto Fac Low Low Dat Pro Fac Low Low Zio Pro Fac Ext Cet Arc Hub Fac Peak Influence 2181 | . 242 93 549 541 . 188 394 619 1316 . . . . 1213 . . . . 151 431 527 210 1092 2181 Initial 534 | . . 30 . 187 . . 50 31 235 . . . . 214 . . . . . 73 140 210 12 534 Average 326 | . 125 61 297 308 . 79 159 299 650 . . . . 733 . . . . 97 255 340 50 303 1142 Maximum Alert Level 5 | . 1 . 2 2 . . 1 2 4 . . . . 4 . . . . . 2 2 1 3 5 Low Security (%) 45 | 100 61 100 22 36 . 100 57 38 12 . . . . . . . . . 100 24 27 77 57 . Level 1 27 | . 38 . 43 46 . . 42 12 34 . . . . 29 . . . . . 70 32 22 16 . Level 2 14 | . . . 34 16 . . . 49 8 . . . . 13 . . . . . 4 40 . 13 32 Level 3 5 | . . . . . . . . . 18 . . . . 26 . . . . . . . . 12 20 Level 4 5 | . . . . . . . . . 24 . . . . 29 . . . . . . . . . 15 Level 5 1 | . . . . . . . . . . . . . . . . . . . . . . . . 32 High Security . | . . . . . . . . . . . . . . . . . . . . . . . . . Max Security . | . . . . . . . . . . . . . . . . . . . . . . . . . Squads Dispatched 43 | . 4 . 1 . . . . 2 9 . 1 . 1 9 . . . . 1 3 1 . 4 7 Investigation 11 | . 3 . 1 . . . . . 4 . . . . . . . . . . 1 1 . . 1 Extermination 4 | . . . . . . . . . 1 . . . . 2 . . . . . . . . . 1 Reinforcement 16 | . 1 . . . . . . 1 2 . . . . 3 . . . . . 2 . . 3 4 Assault 6 | . . . . . . . . 1 1 . 1 . 1 . . . . . . . . . 1 1 Garrison 6 | . . . . . . . . . 1 . . . . 4 . . . . 1 . . . . . Intercept . | . . . . . . . . . . . . . . . . . . . . . . . . . Searches Triggered . | . . . . . . . . . . . . . . . . . . . . . . . . . Data Miner Redirects 2 | . . . . . . . . . . . . . . . . . . . . . . . 1 1 Construction Impeded 5 | . . . . . . . . . 2 . . . . 1 . . . . . . . . . 2 Haulers Reinforced 2 | . . . . . . . . . . . . . . . . . . . . . . . 1 1 Active Scanning Responses . | . . . . . . . . . . . . . . . . . . . . . . . . . Cargo Convoy Interrupts 1 | . . . . . . . . . . . . . . 1 . . . . . . . . . . Stealth | -11 -10 -10 -9 -9 -9 -8 -8 -8 -7 -7 -7 -7 -6 -6 -6 -6 -6 -5 -5 -5 -5 -5 -5 -4 --------- Run | Scr Mat Min Mat Min Exi Min Mat Sto Fac Low Low Dat Pro Fac Low Low Zio Pro Fac Ext Cet Arc Hub Fac Distress Signals 10 | . . . 1 . . . . 1 . . . . . 1 . . . . 1 2 . . . 4 Communications Jammed 158 | . . . . . . . . . . . . . . 116 1 . . . . . . . 31 10 Distress Signals 133 | . . . . . . . . . . . . . . 96 1 . . . . . . . 26 10 Times Spotted 378 | . 8 5 23 9 . 9 11 28 39 2 24 . 27 49 10 5 . 7 4 27 15 . 24 52 Peak Tracking Total 12 | . 2 3 4 4 . 3 4 5 5 2 7 . 9 9 4 2 . 5 1 5 5 . 7 12 Tactical Retreats 8 | . . . 2 . . . . 1 . . 1 . 1 . . . . . 1 2 . . . . Traps | -11 -10 -10 -9 -9 -9 -8 -8 -8 -7 -7 -7 -7 -6 -6 -6 -6 -6 -5 -5 -5 -5 -5 -5 -4 ------- Run | Scr Mat Min Mat Min Exi Min Mat Sto Fac Low Low Dat Pro Fac Low Low Zio Pro Fac Ext Cet Arc Hub Fac Traps Triggered 7 | . 1 . . . . . . . 2 . . . . 2 . . . . 1 . . . 1 . Indirectly 1 | . . . . . . . . . . . . . . . . . . . . . . . 1 . Trap Hack Attempts 95 | . . . 12 . . . . 83 . . . . . . . . . . . . . . . . Triggered . | . . . . . . . . . . . . . . . . . . . . . . . . . Disarmed 3 | . . . 2 . . . . 1 . . . . . . . . . . . . . . . . Reprogrammed 14 | . . . . . . . 4 10 . . . . . . . . . . . . . . . . Reused . | . . . . . . . . . . . . . . . . . . . . . . . . . Traps Extracted 4 | . . . . . . . 4 . . . . . . . . . . . . . . . . . Installed . | . . . . . . . . . . . . . . . . . . . . . . . . . Triggered 4 | . . . . . . . . . . 1 . . . . 1 . . . . 2 . . . . Most Traps Carried 10 | . . . . . . . 4 4 4 8 8 8 8 8 10 10 10 8 8 8 8 8 8 8 Machines | -11 -10 -10 -9 -9 -9 -8 -8 -8 -7 -7 -7 -7 -6 -6 -6 -6 -6 -5 -5 -5 -5 -5 -5 -4 ---------- Run | Scr Mat Min Mat Min Exi Min Mat Sto Fac Low Low Dat Pro Fac Low Low Zio Pro Fac Ext Cet Arc Hub Fac Machines Disabled 55 | . . . 3 1 . 1 2 2 14 . 1 . 1 3 . . . . . . 1 . 13 13 Max in Single Turn 10 | . . . 1 1 . . . 1 1 . 1 . 1 1 . . . . . . . . 10 2 Garrison Access 5 | . . . . . . . 1 . 1 . . . . . . . . . 1 . . . 2 . Network Hub 2 | . . . . . . . . . . . . . . . . . . . . . . . 2 . Machines Sabotaged . | . . . . . . . . . . . . . . . . . . . . . . . . . Garrisons Compromised . | . . . . . . . . . . . . . . . . . . . . . . . . . Overloaded Fab Kills . | . . . . . . . . . . . . . . . . . . . . . . . . . Hacking | -11 -10 -10 -9 -9 -9 -8 -8 -8 -7 -7 -7 -7 -6 -6 -6 -6 -6 -5 -5 -5 -5 -5 -5 -4 --------- Run | Scr Mat Min Mat Min Exi Min Mat Sto Fac Low Low Dat Pro Fac Low Low Zio Pro Fac Ext Cet Arc Hub Fac Machines Accessed 60 | . 2 . 5 1 1 1 6 10 11 . 1 3 . 10 . . . . 1 3 1 . 3 1 Terminals 34 | . 1 . 3 1 . 1 4 9 4 . . . . 4 . . . . . 3 1 . 2 1 Fabricators 5 | . . . . . . . . . 2 . . . . 3 . . . . . . . . . . Repair Stations 8 | . . . 1 . . . 1 . 3 . . . . 3 . . . . . . . . . . Recycling Units 3 | . 1 . 1 . . . . 1 . . . . . . . . . . . . . . . . Scanalyzers 1 | . . . . . . . . . 1 . . . . . . . . . . . . . . . Garrison Access 4 | . . . . . . . 1 . 1 . . . . . . . . . 1 . . . 1 . Total Hacks 175 | . 4 . 14 2 1 6 24 29 27 . 1 24 . 20 . . . . 1 7 5 . 6 4 Successful 89 | . 2 . 7 1 1 2 13 15 10 . 1 24 . 6 . . . . 1 3 . . 2 1 Failed 85 | . 2 . 6 1 . 4 11 14 17 . . . . 14 . . . . . 4 5 . 4 3 Catastrophic 15 | . . . . . . 1 . 3 3 . . . . 4 . . . . . 2 . . . 2 Database Lockouts 1 | . . . 1 . . . . . . . . . . . . . . . . . . . . . Manual 76 | . 3 . 5 2 . 6 10 20 13 . . . . 5 . . . . . 5 . . 3 4 Terminals 106 | . 2 . 10 2 . 6 20 27 11 . . . . 7 . . . . . 7 5 . 5 4 Fabricators 14 | . . . . . . . . . 7 . . . . 7 . . . . . . . . . . Repair Stations 16 | . . . 2 . . . 2 . 6 . . . . 6 . . . . . . . . . . Recycling Units 6 | . 2 . 2 . . . . 2 . . . . . . . . . . . . . . . . Scanalyzers 1 | . . . . . . . . . 1 . . . . . . . . . . . . . . . Garrison Access 6 | . . . . . . . 2 . 2 . . . . . . . . . 1 . . . 1 . Terminal Hacks 55 | . . . 3 1 1 2 8 9 3 . 1 24 . 1 . . . . . 2 . . . . Record 8 | . . . . . 1 . . . . . 1 6 . . . . . . . . . . . . Part Schematic 10 | . . . . . . . . . . . . 9 . 1 . . . . . . . . . . Robot Schematic 7 | . . . . . . . . . 1 . . 6 . . . . . . . . . . . . Robot Analysis 5 | . . . 1 1 . 2 . 1 . . . . . . . . . . . . . . . . Prototype ID Bank 7 | . . . 1 . . . 1 1 . . . 3 . . . . . . . 1 . . . . Open Door 2 | . . . . . . . . 2 . . . . . . . . . . . . . . . . Branch Access Points 1 | . . . . . . . . . 1 . . . . . . . . . . . . . . . Unreport Threat 8 | . . . 1 . . . 3 2 1 . . . . . . . . . . 1 . . . . Locate Traps 3 | . . . . . . . 1 2 . . . . . . . . . . . . . . . . Reprogram Traps 2 | . . . . . . . 1 1 . . . . . . . . . . . . . . . . Transport Status 1 | . . . . . . . 1 . . . . . . . . . . . . . . . . . Hauler Manifests 1 | . . . . . . . 1 . . . . . . . . . . . . . . . . . Fabricator Hacks 4 | . . . . . . . . . 3 . . . . 1 . . . . . . . . . . Network Status 2 | . . . . . . . . . 1 . . . . 1 . . . . . . . . . . Load Schematic 1 | . . . . . . . . . 1 . . . . . . . . . . . . . . . Build 1 | . . . . . . . . . 1 . . . . . . . . . . . . . . . Repair Station Hacks 8 | . . . 2 . . . 2 . 3 . . . . 1 . . . . . . . . . . Scan Component 5 | . . . 1 . . . 1 . 2 . . . . 1 . . . . . . . . . . Repair 3 | . . . 1 . . . 1 . 1 . . . . . . . . . . . . . . . Recycling Unit Hacks 3 | . 1 . 1 . . . . 1 . . . . . . . . . . . . . . . . Retrieve Components 3 | . 1 . 1 . . . . 1 . . . . . . . . . . . . . . . . Scanalyzer . | . . . . . . . . . . . . . . . . . . . . . . . . . Garrison Access Hacks 3 | . . . . . . . 1 . . . . . . . . . . . 1 . . . 1 . Seal Access 3 | . . . . . . . 1 . . . . . . . . . . . 1 . . . 1 . Unauthorized Hacks 16 | . 1 . 1 . . . 2 5 1 . . . . 3 . . . . . 1 . . 1 1 Terminals 11 | . . . . . . . 2 4 . . . . . 2 . . . . . 1 . . 1 1 Track 3 | . . . . . . . 1 2 . . . . . . . . . . . . . . . . Botnet 7 | . . . . . . . 1 1 . . . . . 2 . . . . . 1 . . 1 1 Disrupt 1 | . . . . . . . . 1 . . . . . . . . . . . . . . . . Fabricators 2 | . . . . . . . . . 1 . . . . 1 . . . . . . . . . . Prioritize 1 | . . . . . . . . . 1 . . . . . . . . . . . . . . . Liberate 1 | . . . . . . . . . . . . . . 1 . . . . . . . . . . Repair Stations . | . . . . . . . . . . . . . . . . . . . . . . . . . Recycling Units 3 | . 1 . 1 . . . . 1 . . . . . . . . . . . . . . . . Mask 1 | . . . . . . . . 1 . . . . . . . . . . . . . . . . Tunnel 2 | . 1 . 1 . . . . . . . . . . . . . . . . . . . . . Scanalyzers . | . . . . . . . . . . . . . . . . . . . . . . . . . Garrison Access . | . . . . . . . . . . . . . . . . . . . . . . . . . Data Cores Recovered 2 | . . . 1 . . . . 1 . . . . . . . . . . . . . . . . Used 1 | . . . 1 . . . . . . . . . . . . . . . . . . . . . Hacking Detections 46 | . 1 . 4 1 . 1 5 9 9 . . . . 9 . . . . . 3 1 . 2 1 Full Trace Events 6 | . . . . . . . . . 4 . . . . . . . . . . . 1 . . 1 Feedback Events 1 | . . . . . . . . . 1 . . . . . . . . . . . . . . . Corruption 1 | . . . . . . . . . 1 . . . . . . . . . . . . . . . Feedback Blocked . | . . . . . . . . . . . . . . . . . . . . . . . . . Robot Schematics Acquired 7 | . . . . . . . . . 1 . . 6 . . . . . . . . . . . . Robots Built 1 | . . . . . . . . . 1 . . . . . . . . . . . . . . . Authchips 1 | . . . . . . . . . 1 . . . . . . . . . . . . . . . Time 116 | . . . . . . . . . 116 . . . . . . . . . . . . . . . Total Robot Build Rating 3 | . . . . . . . . . 3 . . . . . . . . . . . . . . . Part Schematics Acquired 10 | . . . . . . . . . . . . 9 . 1 . . . . . . . . . . Parts Built . | . . . . . . . . . . . . . . . . . . . . . . . . . Authchips . | . . . . . . . . . . . . . . . . . . . . . . . . . Time . | . . . . . . . . . . . . . . . . . . . . . . . . . Total Part Build Rating . | . . . . . . . . . . . . . . . . . . . . . . . . . Parts Repaired 3 | . . . 1 . . . 1 . 1 . . . . . . . . . . . . . . . Time 65 | . . . 26 . . . 13 . 26 . . . . . . . . . . . . . . . Parts Recycled . | . . . . . . . . . . . . . . . . . . . . . . . . . Recycled Matter . | . . . . . . . . . . . . . . . . . . . . . . . . . Retrieved Matter . | . . . . . . . . . . . . . . . . . . . . . . . . . Retrieved Components 20 | . 1 . 10 . . . . 9 . . . . . . . . . . . . . . . . Parts Scanalyzed . | . . . . . . . . . . . . . . . . . . . . . . . . . Part Schematics Acquired . | . . . . . . . . . . . . . . . . . . . . . . . . . Parts Damaged . | . . . . . . . . . . . . . . . . . . . . . . . . . Bothacking | -11 -10 -10 -9 -9 -9 -8 -8 -8 -7 -7 -7 -7 -6 -6 -6 -6 -6 -5 -5 -5 -5 -5 -5 -4 ------------ Run | Scr Mat Min Mat Min Exi Min Mat Sto Fac Low Low Dat Pro Fac Low Low Zio Pro Fac Ext Cet Arc Hub Fac Used RIF Installer . | . . . . . . . . . . . . . . . . . . . . . . . . . Robots Hacked 8 | . . . . . 4 . . 1 . . . 1 1 . . . 1 . . . . . . . Non-combat 4 | . . . . . 3 . . 1 . . . . . . . . . . . . . . . . Combat 4 | . . . . . 1 . . . . . . 1 1 . . . 1 . . . . . . . Robot Hacks Applied 8 | . . . . . 4 . . 1 . . . 1 1 . . . 1 . . . . . . . parse_system 7 | . . . . . 4 . . . . . . 1 1 . . . 1 . . . . . . . no_distress 1 | . . . . . . . . 1 . . . . . . . . . . . . . . . . Relay Couplers Released 7 | . . . . . . . . . 3 . . . . . . . . . . . . . 1 3 Machine Destruction 4 | . . . . . . . . . 3 . . . . . . . . . . . . . 1 . Programmers 3 | . . . . . . . . . . . . . . . . . . . . . . . . 3 Fabnet Peak Effective % . | . . . . . . . . . . . . . . . . . . . . . . . . . Robots Rewired 21 | . . . . . . . . . . . 2 . 2 . . . . . . 17 . . . . Allies Hacked . | . . . . . . . . . . . . . . . . . . . . . . . . . Hacks Repelled . | . . . . . . . . . . . . . . . . . . . . . . . . . Allies | -11 -10 -10 -9 -9 -9 -8 -8 -8 -7 -7 -7 -7 -6 -6 -6 -6 -6 -5 -5 -5 -5 -5 -5 -4 -------- Run | Scr Mat Min Mat Min Exi Min Mat Sto Fac Low Low Dat Pro Fac Low Low Zio Pro Fac Ext Cet Arc Hub Fac Total Allies 35 | . 1 . . . . . . . 1 . 2 . 3 . . . 7 . . 21 . . . . Largest Group 11 | . 1 1 1 1 1 1 1 1 2 2 4 3 4 3 1 1 8 8 3 11 11 3 2 1 Highest-Rated Group 419 | . 58 58 74 74 74 77 88 88 122 123 171 149 245 169 124 125 318 318 188 419 419 188 168 161 Highest-Rated Ally 161 | . 58 58 74 74 74 77 88 88 99 100 101 101 104 121 124 125 135 133 143 133 143 143 143 161 Total Orders 15 | . . . . . . . . . 2 . 9 . . . . . . 3 . 1 . . . . STAY 2 | . . . . . . . . . . . 2 . . . . . . . . . . . . . FOLLOW 5 | . . . . . . . . . 1 . 4 . . . . . . . . . . . . . AID 4 | . . . . . . . . . 1 . 3 . . . . . . . . . . . . . EXPLORE 3 | . . . . . . . . . . . . . . . . . . 3 . . . . . . RETURN 1 | . . . . . . . . . . . . . . . . . . . . 1 . . . . Ally Attacks 821 | . 24 3 35 10 . 27 8 44 59 6 33 . 59 88 15 7 . 50 30 134 55 7 45 82 Total Damage 28244 | . 304 21 634 184 . 722 262 1289 3301 94 1201 . 2118 3344 578 303 . 1033 561 3286 1602 293 3231 3883 Kills 249 | . 5 2 12 4 . 7 3 17 26 3 15 . 17 33 3 2 . 10 3 27 7 2 20 31 Allies Corrupted . | . . . . . . . . . . . . . . . . . . . . . . . . . Allies Melted . | . . . . . . . . . . . . . . . . . . . . . . . . . Intel | -11 -10 -10 -9 -9 -9 -8 -8 -8 -7 -7 -7 -7 -6 -6 -6 -6 -6 -5 -5 -5 -5 -5 -5 -4 ------- Run | Scr Mat Min Mat Min Exi Min Mat Sto Fac Low Low Dat Pro Fac Low Low Zio Pro Fac Ext Cet Arc Hub Fac Robot Analysis Total 5 | . . . 1 1 . 2 . 1 . . . . . . . . . . . . . . . . Derelict Logs Recovered 17 | . . 1 . 1 . . . . . 2 2 . 3 . 2 2 2 2 . . . . . . Drone Launches 4 | . . . . . . . . . . . . . . . . . . 3 . 1 . . . . Drone Recoveries 3 | . . . . . . . . . . . . . . . . . . 2 . 1 . . . . Exploration | -11 -10 -10 -9 -9 -9 -8 -8 -8 -7 -7 -7 -7 -6 -6 -6 -6 -6 -5 -5 -5 -5 -5 -5 -4 ------------- Run | Scr Mat Min Mat Min Exi Min Mat Sto Fac Low Low Dat Pro Fac Low Low Zio Pro Fac Ext Cet Arc Hub Fac Turns Passed 26846 | 3 428 955 647 854 622 1431 734 2256 1411 1205 1718 148 2955 1446 1265 980 1309 1054 296 1852 325 1755 521 676 Spaces Moved 12799 | 1 181 573 338 509 277 566 358 752 711 740 948 93 1332 782 837 653 855 492 146 924 138 127 251 215 Core 76 | . . . . . . . . . . . . . . . . . . . . . . 76 . . Treads 8707 | 1 181 573 24 509 277 566 358 752 711 740 948 93 977 1 . . . 336 146 924 138 51 251 150 Legs . | . . . . . . . . . . . . . . . . . . . . . . . . . Wheels 4016 | . . . 314 . . . . . . . . . 355 781 837 653 855 156 . . . . . 65 Hover . | . . . . . . . . . . . . . . . . . . . . . . . . . Flight . | . . . . . . . . . . . . . . . . . . . . . . . . . Fastest Speed 100 | 160 160 160 100 160 160 240 160 156 156 156 156 156 130 130 145 145 145 145 166 166 162 162 160 116 Average Speed 173 | 160 160 160 116 160 215 240 160 158 156 156 156 156 197 138 145 145 145 160 166 166 162 1231 160 148 Slowest Speed 1950 | 160 160 160 160 160 240 240 160 160 235 156 156 156 240 240 145 145 145 168 168 166 166 1950 162 165 Overloaded Moves . | . . . . . . . . . . . . . . . . . . . . . . . . . Propulsion Burnouts . | . . . . . . . . . . . . . . . . . . . . . . . . . Robots Hopped . | . . . . . . . . . . . . . . . . . . . . . . . . . Cave-ins Triggered . | . . . . . . . . . . . . . . . . . . . . . . . . . Exploration Rate (%) 63 | 1 30 99 34 98 65 97 28 98 26 85 98 75 98 27 97 90 87 85 5 92 60 75 36 11 Regions Visited 24 Branch Regions 17 Pre-discovered Areas 8 | . 1 1 1 . 1 . . . . . . 1 . . 1 . 1 1 . . . . . . Known Exits Taken 5 | . . . . . . . 1 . 1 . . . . . . . . 1 1 . . . 1 . Unknown Exits Taken 19 | 1 1 1 1 1 1 1 . 1 . 1 1 1 1 1 1 1 1 . . 1 1 1 . . Scrap Searched 7 | . . . . . . . . . . 2 3 . 1 . . . . 1 . . . . . . Spaces Dug 47 | . . . 26 . . . 1 11 1 . 5 . . 3 . . . . . . . . . . Terrain Destroyed 676 | . . . 26 65 . 11 15 37 4 . 12 . 20 14 11 . . . 3 16 12 . 339 91 Melee 6 | . . . . . . . 1 . 1 . 4 . . . . . . . . . . . . . Projectile 123 | . . . . . . 2 . . 3 . 8 . 20 14 4 . . . 3 16 12 . 12 29 AOE 547 | . . . 26 65 . 9 14 37 . . . . . . 7 . . . . . . . 327 62 Terrain Rammed . | . . . . . . . . . . . . . . . . . . . . . . . . . Walls Destroyed . | . . . . . . . . . . . . . . . . . . . . . . . . . Machines Disabled . | . . . . . . . . . . . . . . . . . . . . . . . . . Actions | -11 -10 -10 -9 -9 -9 -8 -8 -8 -7 -7 -7 -7 -6 -6 -6 -6 -6 -5 -5 -5 -5 -5 -5 -4 --------- Run | Scr Mat Min Mat Min Exi Min Mat Sto Fac Low Low Dat Pro Fac Low Low Zio Pro Fac Ext Cet Arc Hub Fac Total 16384 | 2 286 600 524 538 300 612 492 1719 905 780 1116 95 1590 1021 863 676 927 739 187 1149 199 318 318 428 Wait 2328 | . 70 11 89 15 15 19 65 795 91 25 96 . 181 120 1 15 51 224 27 64 28 192 26 108 Move 12775 | . 180 572 337 508 276 565 357 751 710 739 947 92 1331 781 836 652 854 491 145 923 137 126 250 215 Hop . | . . . . . . . . . . . . . . . . . . . . . . . . . Pick Up 91 | . 6 2 10 . 1 9 14 6 8 1 3 . 2 5 2 1 6 3 2 . 2 . 1 7 Fast Attach 68 | . 2 2 10 . . . 5 . 5 1 3 . 6 11 . . 1 1 1 5 4 . 3 8 Attach 40 | . . . 3 . . . 4 3 3 1 . . 2 10 2 . . 1 1 . 1 . 1 8 Detach 19 | . 1 . 1 . . . 1 . . 2 . . 2 8 2 . . . . . . . . 2 Swap 116 | 2 1 . 10 6 3 2 9 19 18 4 3 2 6 10 2 . 4 4 . 6 1 . 1 3 Drop 134 | . 6 4 16 . 1 1 18 10 13 2 7 . 8 12 . 1 10 4 . 5 7 . 4 5 Fire 506 | . 20 5 35 7 . 12 15 47 49 5 30 . 27 61 18 7 . 11 8 38 19 . 21 71 Melee 20 | . . . . . 4 . 2 2 2 . 5 1 3 . . . 1 . . . . . . . Ram 1 | . . . 1 . . . . . . . . . . . . . . . . . . . . . Kick . | . . . . . . . . . . . . . . . . . . . . . . . . . Crush 41 | . . 4 . 2 . 4 2 3 6 . . . . 1 . . . . . 7 . . 11 1 Escape Stasis 5 | . . . . . . . . . . . . . . 2 . . . . 3 . . . . . Rewire 145 | . . . . . . . . . . . 22 . 22 . . . . . . 101 . . . . Trap 95 | . . . 12 . . . . 83 . . . . . . . . . . . . . . . . Miscellaneous . | . . . . . . . . . . . . . . . . . . . . . . . . . Route ------- -11/Scrapyard -10/Materials -10/Mines (discovered 2 exits: *Mat x2) -9/Materials -9/Mines (discovered 3 exits: *Mat x2 / *Exi) -9/Exiles -8/Mines (discovered 2 exits: *Mat x2) -8/Materials -8/Storage -7/Factory (discovered 3 exits: *Fac / *Low x2) -7/Lower Caves -7/Lower Caves (discovered 2 exits: *Fac / *Dat) -7/Data Miner -6/Proximity Caves -6/Factory (discovered 3 exits: *Fac x2 / [*Low]) -6/Lower Caves (discovered 2 exits: [*Low] / [*Zio]) -6/Lower Caves -6/Zion -5/Proximity Caves -5/Factory (discovered 6 exits: Fac x2 / Upp x2 / *Ext x2) -5/Extension (discovered 3 exits: *Fac x2 / *Cet) -5/Cetus (discovered 2 exits: *Fac / [*Arc]) -5/Archives (discovered 2 exits: *Hub x2) -5/Hub_04(d) -4/Factory (discovered 1 exit: [*Upp]) History --------- Turn | Location | Event 4 | -11/Scrapyard | Discovered new exit (range 0) 4 | -11/Scrapyard | Entered Materials 301 | -10/Materials | Discovered new exit (range 12) 304 | -10/Materials | Build established: Mutant 432 | -10/Materials | Entered Mines 433 | -10/Mines | Learned location of Storage (-8) 549 | -10/Mines | Received a Rocket Launcher from a helpful Derelict 765 | -10/Mines | Discovered new exit (range 9) 944 | -10/Mines | Discovered new exit (range 6) 1387 | -10/Mines | Entered Materials 1387 | -9/Materials | Evolved 2 slots: Propulsion x1, Utility x1 1479 | -9/Materials | Central database locked down 1757 | -9/Materials | Discovered new exit (range 15) 1866 | -9/Materials | Repaired Lgt. Treads 2034 | -9/Materials | Entered Mines 2136 | -9/Mines | Deemed a non-threat by the Exiles lab entrance 2136 | -9/Mines | Discovered new exit (range 5) 2247 | -9/Mines | Learned Materials emergency access door positions 2569 | -9/Mines | Discovered new exit (range 7) 2709 | -9/Mines | Discovered new exit (range 16) 2888 | -9/Mines | Entered Exiles 2928 | -9/Exiles | Met 8R-AWN 2971 | -9/Exiles | Met EX-HEX 3072 | -9/Exiles | Met EX-DEC 3135 | -9/Exiles | Learned location of Zion (-6) 3174 | -9/Exiles | Met EX-BIN 3482 | -9/Exiles | Discovered new exit (range 12) 3510 | -9/Exiles | Entered Mines 3900 | -8/Mines | Discovered new exit (range 5) 4041 | -8/Mines | Discovered new exit (range 13) 4759 | -8/Mines | Core integrity fell below 50% 4941 | -8/Mines | Entered Materials 4941 | -8/Materials | Evolved 2 slots: Propulsion x1, Utility x1 4942 | -8/Materials | Identified exit to Storage 5258 | -8/Materials | Build established: Scavenger-Mutant 5517 | -8/Materials | Repaired Lgt. Treads 5584 | -8/Materials | Build established: Mutant 5675 | -8/Materials | Entered Storage 5972 | -8/Storage | Build established: Scavenger-Mutant 7120 | -8/Storage | Discovered new exit (range 16) 7275 | -8/Storage | First assault squad dispatched 7331 | -8/Storage | Found Prototype Launcher 7931 | -8/Storage | Entered Factory 7931 | -7/Factory | Evolved 2 slots: Utility x1, Weapon x1 8080 | -7/Factory | Identified exit to Lower Caves 8186 | -7/Factory | Repaired Lgt. Treads 8520 | -7/Factory | Build established: Hacker-Gunner 8554 | -7/Factory | Garrison activated, responded to threat 9142 | -7/Factory | Fabricated M-28 Smith? 9202 | -7/Factory | Build established: Hacker-Mutant 9288 | -7/Factory | Discovered new exit (range 15) 9342 | -7/Factory | Entered Lower Caves 9342 | -7/Lower Caves | Accompanied by 1 ally 9490 | -7/Lower Caves | Learned 4 Factory zone layouts 9493 | -7/Lower Caves | Encountered a Warlord checkpoint 9692 | -7/Lower Caves | Build established: Tank 10069 | -7/Lower Caves | Build established: Trapper-Tank 10424 | -7/Lower Caves | Learned Factory emergency access door positions 10452 | -7/Lower Caves | Discovered new exit (range 10) 10547 | -7/Lower Caves | Entered another Lower Caves area 10547 | -7/Lower Caves | Accompanied by 1 ally 10650 | -7/Lower Caves | Discovered new exit (range 7) 10750 | -7/Lower Caves | Encountered a Warlord checkpoint 10811 | -7/Lower Caves | Attracted the attention of an 0b10 outpost 11073 | -7/Lower Caves | Learned Factory emergency access door positions 11877 | -7/Lower Caves | Discovered new exit (range 10) 12265 | -7/Lower Caves | Entered Data Miner 12265 | -7/Data Miner | Accompanied by 2 allies 12265 | -7/Data Miner | Discovered new exit (range 7) 12295 | -7/Data Miner | Met Data Miner 12349 | -7/Data Miner | Learned location of Section 7 (-2) 12349 | -7/Data Miner | Acquired the access code to Warlord's prototype stash 12372 | -7/Data Miner | Received God Mode back door access code from Data Miner 12413 | -7/Data Miner | Entered Proximity Caves 12413 | -6/Proximity Caves | Accompanied by 2 allies 12441 | -6/Proximity Caves | Learned Factory emergency access door positions 12561 | -6/Proximity Caves | Found Alien Artifact 12642 | -6/Proximity Caves | Escorted by Enhanced Grunt 12775 | -6/Proximity Caves | Spotted B-75 Beast 12797 | -6/Proximity Caves | Allies destroyed B-75 Beast 12957 | -6/Proximity Caves | Discovered new exit (range 11) 13019 | -6/Proximity Caves | Learned Factory interactive machine intel 13081 | -6/Proximity Caves | Learned Factory trap positions 13130 | -6/Proximity Caves | Build established: Scavenger-Tank 13281 | -6/Proximity Caves | Attracted the attention of an 0b10 checkpoint 13868 | -6/Proximity Caves | Received a Behemoth hack from an annoying Tinkerer 14797 | -6/Proximity Caves | Attracted the attention of an 0b10 outpost 14856 | -6/Proximity Caves | Lost 3 parts (1p1n1u) 15116 | -6/Proximity Caves | Build established: Trapper-Tank 15368 | -6/Proximity Caves | Entered Factory 15368 | -6/Factory | Accompanied by 2 allies 15368 | -6/Factory | Evolved 2 slots: Propulsion x1, Utility x1 15370 | -6/Factory | Loaded intel: 100 trap records 15372 | -6/Factory | Loaded intel: 52 interactive machine locations 15951 | -6/Factory | Garrison activated, responded to threat 16039 | -6/Factory | Cargo convoy interrupted 16112 | -6/Factory | Lost 3 parts (1n1u1w) 16115 | -6/Factory | Found Prototype Processor 16115 | -6/Factory | Identified Exp. Signal Interpreter 16121 | -6/Factory | Found Prototype Device 16121 | -6/Factory | Identified Exp. Thermal Defense Suite 16164 | -6/Factory | Garrison activated, responded to threat 16215 | -6/Factory | Discovered new exit (range 10) 16233 | -6/Factory | Identified exit to Factory 16361 | -6/Factory | Discovered exit to Factory (range 6) 16616 | -6/Factory | Identified Dimensional Node Initializer 16616 | -6/Factory | Initialized slip node 16733 | -6/Factory | Discovered new exit (range 3) 16814 | -6/Factory | Entered Lower Caves 16815 | -6/Lower Caves | A Derelict revealed a hidden shortcut to a safe place 16886 | -6/Lower Caves | Build established: Trapper-Mutant 16891 | -6/Lower Caves | Learned 8 Factory zone layouts 16959 | -6/Lower Caves | Attracted the attention of an 0b10 checkpoint 17063 | -6/Lower Caves | Identified Gui. Missile Launcher 17475 | -6/Lower Caves | Discovered new exit (range 19) 18079 | -6/Lower Caves | Entered another Lower Caves area 18107 | -6/Lower Caves | Learned Factory security intel 18110 | -6/Lower Caves | Learned 8 Factory zone layouts 18129 | -6/Lower Caves | Attracted the attention of an 0b10 checkpoint 18211 | -6/Lower Caves | Encountered a Warlord checkpoint 18784 | -6/Lower Caves | Core integrity fell below 50% 18824 | -6/Lower Caves | Discovered new exit (range 18) 19059 | -6/Lower Caves | Entered Zion 19109 | -6/Zion | Acquired unknown access codes intercepted by a Zionite 19194 | -6/Zion | Discovered new exit (range 20) 19345 | -6/Zion | Learned location of 1 exit from Factory 19356 | -6/Zion | Learned Factory emergency access door positions 19563 | -6/Zion | Learned Factory stockpile data 19602 | -6/Zion | Found Prototype Energy Gun 19655 | -6/Zion | Learned location of Warlord (-5) 19665 | -6/Zion | Found Prototype Device 19768 | -6/Zion | Given the Hacking Drone Bay 19768 | -6/Zion | Found Prototype Device 19771 | -6/Zion | Identified Hacking Drone Bay 19969 | -6/Zion | Gained Derelict followers 20187 | -6/Zion | Build established: Trapper-Gunner 20368 | -6/Zion | Entered Proximity Caves 20368 | -5/Proximity Caves | Accompanied by 7 allies 20579 | -5/Proximity Caves | Spotted B-75 Beast 20614 | -5/Proximity Caves | Allies destroyed B-75 Beast 20948 | -5/Proximity Caves | Build established: Scavenger-Mutant 21025 | -5/Proximity Caves | Learned Factory stockpile data 21422 | -5/Proximity Caves | Entered Factory 21422 | -5/Factory | Accompanied by 2 allies 21422 | -5/Factory | Evolved 2 slots: Power x1, Propulsion x1 21423 | -5/Factory | Identified exit to Upper Caves 21425 | -5/Factory | Identified exit to Factory 21425 | -5/Factory | Identified exit to Extension 21446 | -5/Factory | Garrison activated, responded to threat 21709 | -5/Factory | Discovered exit to Extension (range 5) 21718 | -5/Factory | Entered Extension 21718 | -5/Extension | Accompanied by 1 ally 21726 | -5/Extension | Rescued a captive Derelict 21727 | -5/Extension | Rescued a captive Derelict 21735 | -5/Extension | Rescued a captive Derelict 21735 | -5/Extension | Rescued a captive Derelict 21737 | -5/Extension | Rescued a captive Derelict 21740 | -5/Extension | Rescued a captive Derelict 21740 | -5/Extension | Rescued a captive Derelict 21745 | -5/Extension | Rescued a captive Derelict 21746 | -5/Extension | Rescued a captive Derelict 21751 | -5/Extension | Rescued a captive Derelict 21752 | -5/Extension | Rescued a captive Derelict 21754 | -5/Extension | Rescued a captive Derelict 21766 | -5/Extension | Rescued a captive Derelict 21781 | -5/Extension | Rescued a captive Derelict 21899 | -5/Extension | Build established: Scavenger-Gunner 22623 | -5/Extension | Spotted B-75 Beast 22648 | -5/Extension | Allies destroyed B-75 Beast 22649 | -5/Extension | Spotted B-75 Beast 22678 | -5/Extension | Allies destroyed B-75 Beast 22680 | -5/Extension | Discovered exit to Factory (range 19) 23213 | -5/Extension | Build established: Commander-Gunner 23275 | -5/Extension | Discovered exit to Factory (range 10) 23277 | -5/Extension | Discovered new exit (range 6) 23422 | -5/Extension | Extracted ID and sensor layout for unrecognized location from A7's data core 23570 | -5/Extension | Entered Cetus 23570 | -5/Cetus | Accompanied by 10 allies 23590 | -5/Cetus | Spotted Cetus Guard 23590 | -5/Cetus | Spotted Cetus Guard 23590 | -5/Cetus | Spotted Cetus Guard 23590 | -5/Cetus | Spotted Cetus Guard 23604 | -5/Cetus | Allies destroyed Cetus Guard 23607 | -5/Cetus | Destroyed Cetus Guard 23615 | -5/Cetus | Allies destroyed Cetus Guard 23618 | -5/Cetus | Allies destroyed Cetus Guard 23714 | -5/Cetus | Discovered new exit (range 21) 23746 | -5/Cetus | Spotted Cetus Guard 23748 | -5/Cetus | Spotted Cetus Guard 23758 | -5/Cetus | Spotted Cetus Guard 23763 | -5/Cetus | Allies destroyed Cetus Guard 23763 | -5/Cetus | Spotted Cetus Guard 23764 | -5/Cetus | Destroyed Cetus Guard 23775 | -5/Cetus | Allies destroyed Cetus Guard 23779 | -5/Cetus | Destroyed Cetus Guard 23794 | -5/Cetus | Discovered exit to Factory (range 22) 23811 | -5/Cetus | Met Revision 17 23895 | -5/Cetus | Entered Archives 23895 | -5/Archives | Accompanied by 2 allies 24113 | -5/Archives | Build established: Trapper-Gunner 25599 | -5/Archives | Met Zhirov 25599 | -5/Archives | Discovered new exit (range 22) 25605 | -5/Archives | Reinforcements dispatched to Archives 25605 | -5/Archives | Discovered new exit (range 22) 25650 | -5/Archives | Reinforcements dispatched to Archives 25650 | -5/Archives | Entered Hub_04(d) 25650 | -5/Hub_04(d) | Accompanied by 1 ally 25898 | -5/Hub_04(d) | Spotted B-75 Beast 25939 | -5/Hub_04(d) | Incoming assault squad redirected 25952 | -5/Hub_04(d) | Allies destroyed B-75 Beast 26104 | -5/Hub_04(d) | Network Hub disabled 26104 | -5/Hub_04(d) | Network Hub disabled 26114 | -5/Hub_04(d) | Spotted Lightning 26114 | -5/Hub_04(d) | Spotted Lightning 26114 | -5/Hub_04(d) | Spotted Lightning 26152 | -5/Hub_04(d) | Discovered exit to Factory (range 5) 26168 | -5/Hub_04(d) | Core integrity fell below 50% 26171 | -5/Hub_04(d) | Entered Factory 26171 | -4/Factory | Evolved 2 slots: Utility x2 26368 | -4/Factory | Spotted B-86 Titan 26430 | -4/Factory | Allies destroyed B-86 Titan 26483 | -4/Factory | Found Hvy. Reflective Plating 26516 | -4/Factory | Incoming investigation squad redirected 26612 | -4/Factory | Lost 3 parts (1n1u1w) 26613 | -4/Factory | Core integrity fell below 50% 26651 | -4/Factory | Destroyed 16 combat bots 26671 | -4/Factory | First assault squad dispatched 26827 | -4/Factory | Discovered new exit (range 20) 26832 | -4/Factory | Core integrity fell below 20% 26847 | -4/Factory | Core destroyed Last Messages --------------- 26836_ U-05 Engineer lays Concrete. 26838_ K-01 Serf collects debris. 26838_ U-05 Engineer lays Concrete. 26840_ L-61 Swordsman overheating. 26840_ U-05 Engineer lays Concrete. 26841_ L-61 Swordsman overheating. 26841_ U-05 Engineer lays Concrete. 26842_ K-01 Serf collects debris. 26842_ U-05 Engineer lays Concrete. 26843_ L-61 Swordsman heat spikes uncontrollably. 26843_ U-05 Engineer lays Concrete. 26843_ L-61 Swordsman overheating. 26843_ U-05 Engineer lays Concrete. 26844_ L-61 Swordsman overheating. 26844_ U-05 Engineer builds a Wall. 26845_ U-05 Engineer lays Concrete. 26845_ L-61 Swordsman overheating. 26846_ U-05 Engineer lays Concrete. 26846_ L-61 Swordsman overheating. 26847_ K-01 Serf collects debris. Map ----- +----------------------------------------------------+ | ?????????????????????????????????????????????????? | | ????????????????????????????????????????????????+? | | ????????????????????????????????##???????????????? | | ???????????????????????? ??### ?????????????? | | ???????????????????????? ?# ??????????? | | ??????????????????###### ?# ??????????? | | ???????????????? ?# ??????????? | | ???????????????? ## ??????????? | | ???????????????? ## ?????????? | | ???????????????? ## ?????????? | | ???????????????""" w ??????????? | | ?????????????? """ ???????????? | | ?????????#k ?? """ ????????????? | | ?????????? ? ?????????????? | | ??????????? """ #?????????????? | | ????????????# """ #?????????????? | | ????????????# """ #?????????????? | | ???????????##u #?????????????? | | ???????????## #??!??????????? | | ???????????# #?????????????? | | ???????????# #?????????????? | | ???????? ??# A #?????????????? | | ????? ## [ #?????????????? | | ????? < *% k #?????????????? | | ????? #!% A #????? !??????? | | ????#! ; %[ ! @ #?? ???????? | | ???####?#;; u *u! # """ ????????? | | ??? %; [ |=@ + ""??????????? | | ????? #== u %= l #?????????????? | | ?????? #%* * #?????????????? | | ?????? %+*! ########?????????????? | | ??????/!= #[!! ;###;##+#####????????????????? | | ??????!!= #%= =]## [ #????????????????? | | ???????= ??# g%=##! #????????????????? | | ?????????? ; %=/ ## = "" "" #????????????????? | | ?????????### %* ## ""S"" #????????????????? | | ???????????######## ## ! """" #????????????????? | | ??????????????????# #############????????????????? | | ??????????????????# #??# ? #????????????????? | | ??????????????????# #??# """ #????????????????? | | ??????????????????#%#??" """ #????????????????? | | ??????????????????#%#??# """ +????????????????? | | ??????????????????#%#??# #????????????????? | | ?????????????????## ##?# """ ^ #????????????????? | | ?????????????????#% #?# """ #????????????????? | | ?????????????????#%T%#?? """ |#????????????????? | | ????????????????## #?? #???" ???????????? | | ???????????????#### ########+### ??????????? | | ???????????????# # *==%! ! #######+ ####+###?? | | ########+####### #% !%[=%=* %=[% ?? | +----------------------------------------------------+ Best States ------------- Heat Dissipation 88 Energy Generation 41 Energy Capacity 600 Matter Stores 300 Matter Capacity 300 Sight Range 22 Terrain Scan Density 10 Jamming Range 14 Armor Coverage 1200 Resistance: KI 30 Propulsion Shielding 66 Weapon Shielding 66 Evasion (%) 40 Targeting Accuracy 8 Recoil Reduction 6 Offensive Hacking 10 Defensive Hacking 10 Authchip Count 2 Trap Extractor Capacity 4 Item Schematics ----------------- Combat Drone Bay | -7/Data Miner | Free Lgt. Regenerative Plating | -7/Data Miner | Free Biomechanical Wings | -7/Data Miner | Free Exp. Targeting Computer | -7/Data Miner | Free Com. Ion Cannon | -7/Data Miner | Free Gyrokinetic Inverter | -7/Data Miner | Free Imp. Launcher Guidance Computer | -7/Data Miner | Free Hvy. Phase Cannon | -7/Data Miner | Free Imp. Coolant Injector | -7/Data Miner | Free Imp. Transmission Jammer | -6/Factory | Hacked Robot Schematics ------------------ M-28 Smith | -7/Factory | Hacked B-48 Gladiator | -7/Data Miner | Free M-22 Extractor | -7/Data Miner | Free L-41 Fighter | -7/Data Miner | Free Y-64 Sentinel | -7/Data Miner | Free B-60 Warrior | -7/Data Miner | Free S-27 Virus | -7/Data Miner | Free Fabricated ------------ M-28 Smith | x1 | -7/Factory | Authchip Alien Tech Used ----------------- Dimensional Node Initializer Achievements -------------- None Challenges ------------ None Player 2 | -11 -10 -10 -9 -9 -9 -8 -8 -8 -7 -7 -7 -7 -6 -6 -6 -6 -6 -5 -5 -5 -5 -5 -5 -4 ---------- Run | Scr Mat Min Mat Min Exi Min Mat Sto Fac Low Low Dat Pro Fac Low Low Zio Pro Fac Ext Cet Arc Hub Fac Slots Evolved 12 | . . 2 . . . 2 . 2 . . . . 2 . . . . 2 . . . . 2 . Power 2 | . . . . . . . . 1 . . . . . . . . . 1 . . . . . . Propulsion 4 | . . 1 . . . 2 . . . . . . 1 . . . . . . . . . . . Utility 5 | . . 1 . . . . . . . . . . 1 . . . . 1 . . . . 2 . Weapon 1 | . . . . . . . . 1 . . . . . . . . . . . . . . . . Parts Attached 202 | . 12 . 14 . . 2 10 17 10 1 2 . 4 33 3 1 8 5 4 39 7 . 4 26 Parts Lost 55 | . . . 1 . . . . 2 1 . . . 1 16 1 . . 2 1 10 . . 4 16 Damage Taken 11395 | . 140 . 352 89 . 326 38 577 693 17 299 . 578 1919 43 162 . 456 141 974 241 132 1007 3211 Core 2139 | . 31 . 12 28 . 63 . 25 43 . . . 39 259 . 58 . 134 24 131 . 37 175 1080 Player 2/Cogmind (%) 72 | . 25 . 20 75 . 52 . 30 29 . . . 69 69 . 100 . 100 100 100 . 100 60 92 Absorbed by Shields 310 | . . . . . . . . . . . . . . . . . . . . . . . . 310 Damage Inflicted 23364 | . 304 21 634 184 . 722 262 1289 3301 94 1165 . 1586 2713 578 303 . 381 351 1508 738 247 3100 3883 Player 2/Cogmind (%) 48 | . 60 16 36 26 . 51 26 45 63 25 43 . 54 49 33 45 . 41 63 45 44 100 67 42 Combat Hostiles Destroyed 167 | . 4 2 7 4 . 7 2 13 17 3 15 . 15 22 3 2 . 2 2 10 4 2 11 20 Player 2/Cogmind (%) 50 | . 57 40 38 33 . 63 28 48 48 100 60 . 60 56 37 28 . 66 50 71 36 100 68 40 Game ------ Seed CommFactoryBeamcaster Manual? 0 Play Time 02:01:51 Cumulative 1169.3 hours Start 2022.08.28 @ 16:38:54 End 2022.08.29 @ 04:20:46 Sessions 6 Manual Loads 0 Difficulty Rogue Special Mode AFD2020/Player2 Game No. 818 Rogue 814 Adventurer 4 Explorer 0 Win Type - Total 128 Types 98/9/8/5/2/0/1/3/2 Lore% 94 Gallery% 97 Achievement% 98 Wizard Run 0 Options --------- ASCII 0 Keyboard 1 Movement Vi Keybinds 0 Fullscreen 0 Font 20/X11 Map View 76x50 Tactical HUD 1 Map Filters NONE Filters NONE Steam 1 RUN: 643640a4-8f95-4c9d-88b9-9666d7bc8a37